bitfinex/quotes_SOLUSD_20240915
["timestamp","ask_amount","ask_price","bid_price","bid_amount"]
[1726399683102,7.3546,135.97,135.93,5.82765842]
[1726399683302,7.3546,135.97,135.92,7.3571]
[1726399685928,7.3546,135.97,135.93,7.3566]
[1726399692613,7.3546,135.97,135.92,7.3571]
[1726399696340,7.3546,135.97,135.93,7.3566]
[1726399698129,7.69249915,135.99,135.98,7.354]
[1726399698341,7.69249915,135.99,135.95,0.25098]
[1726399698342,0.2507174,136.0,135.99,7.3534]
[1726399743242,0.2507174,136.0,135.99,13.17824136]
[1726399745846,0.2507174,136.0,135.99,13.17828017]
[1726399763879,0.2507174,136.0,135.99,13.17814068]
[1726399764260,0.2507174,136.0,135.99,5.82474068]
[1726399764466,20.2507174,136.0,135.95,7.3556]
[1726399764663,27.6036174,136.0,135.96,5.82613568]
[1726399764879,27.6036174,136.0,135.95,7.3556]
[1726399764880,27.6036174,136.0,135.97,5.82609532]
[1726399765080,27.6036174,136.0,135.95,7.3556]
[1726399765281,27.6036174,136.0,135.96,5.82610218]
[1726399765481,27.6036174,136.0,135.97,5.82610218]
[1726399765667,27.6036174,136.0,135.95,7.3556]
[1726399765872,27.6036174,136.0,135.96,5.82609616]
[1726399766192,27.6036174,136.0,135.95,7.3556]
[1726399766193,27.6036174,136.0,135.97,5.82609616]
[1726399766387,27.6036174,136.0,135.95,7.3556]
[1726399766572,27.6036174,136.0,135.96,5.8261559]
[1726399766771,27.95061018,136.0,135.96,7.355]
[1726399767094,0.2507174,136.0,135.96,7.355]
[1726399767289,0.2507174,136.0,135.97,5.82607101]
[1726399767491,0.2507174,136.0,135.96,7.355]
[1726399767670,0.2507174,136.0,135.97,5.82595155]
[1726399767870,0.2507174,136.0,135.96,7.355]
[1726399768071,0.2507174,136.0,135.97,5.82595155]
[1726399768271,0.2507174,136.0,135.96,7.355]
[1726399768479,0.2507174,136.0,135.97,5.82595048]
[1726399768684,0.2507174,136.0,135.96,7.355]
[1726399768995,0.2507174,136.0,135.97,5.8259264]
[1726399769291,0.2507174,136.0,135.96,7.355]
[1726399769673,0.2507174,136.0,135.97,7.3544]
[1726399770078,0.2507174,136.0,135.98,7.3539]
[1726399772873,0.2507174,136.0,135.97,7.3544]
[1726399779902,0.2507174,136.0,135.92,0.25098]
[1726399779903,0.2507174,136.0,135.96,7.3549]
[1726399780292,0.2507174,136.0,135.97,5.82578347]
[1726399780492,0.2507174,136.0,135.96,7.3549]
[1726399780989,0.2507174,136.0,135.97,7.3544]
[1726399795221,0.2507174,136.0,135.96,7.3549]
[1726399798227,0.2507174,136.0,135.97,5.82587306]
[1726399798418,0.2507174,136.0,135.96,7.3549]
[1726399798631,0.2507174,136.0,135.97,5.82587199]
[1726399798803,0.2507174,136.0,135.96,7.3549]
[1726399799118,0.2507174,136.0,135.97,5.82587199]
[1726399799329,0.2507174,136.0,135.96,7.3549]
[1726399799533,0.2507174,136.0,135.97,5.82586078]
[1726399799713,0.2507174,136.0,135.96,7.3549]
[1726399800035,0.2507174,136.0,135.97,5.8255615]
[1726399800332,0.2507174,136.0,135.96,7.3549]
[1726399800644,0.2507174,136.0,135.97,5.82564465]
[1726399800809,0.2507174,136.0,135.96,7.3549]
[1726399801238,0.2507174,136.0,135.97,5.82561586]
[1726399801521,7.6038174,136.0,135.96,7.3549]
[1726399801726,7.6038174,136.0,135.97,5.82591449]
[1726399801927,15.29924405,136.0,135.96,7.3549]
[1726399802123,15.29924405,136.0,135.97,5.82589898]
[1726399802328,15.29924405,136.0,135.95,7.3555]
[1726399802535,7.3534,135.99,135.96,5.82594219]
[1726399802710,6.5169,135.98,135.94,7.3561]
[1726399803034,0.2507174,136.0,135.98,7.354]
[1726399804013,0.2507174,136.0,135.97,7.3544]
[1726399804213,0.2507174,136.0,135.98,5.82551661]
[1726399804426,0.2507174,136.0,135.96,7.3549]
[1726399804720,7.6036174,136.0,135.96,7.3549]
[1726399805033,7.6036174,136.0,135.97,5.82598058]
[1726399805214,7.6036174,136.0,135.96,7.3549]
[1726399807726,7.6036174,136.0,135.95,7.3555]
[1726399808228,7.6036174,136.0,135.96,4.39505583]
[1726399808408,7.6036174,136.0,135.95,7.3555]
[1726399809021,7.3534,135.99,135.95,7.3555]
[1726399815146,7.6036174,136.0,135.95,7.3555]
[1726399818625,7.6036174,136.0,135.96,7.355]
[1726399826849,7.6036174,136.0,135.95,7.3555]
[1726399828331,7.3535,135.99,135.94,7.356]
[1726399831548,13.5041,135.98,135.94,7.356]
[1726399836658,6.1501,135.98,135.94,7.356]
[1726399838059,6.1501,135.98,135.95,7.3555]
[1726399849783,6.1501,135.98,135.91,16.3957]
[1726399849989,6.1501,135.98,135.93,7.3562]
[1726399850169,6.1501,135.98,135.94,7.03279512]
[1726399850368,6.1501,135.98,135.93,7.3562]
[1726399850568,7.3545,135.97,135.94,7.03279646]
[1726399850885,13.5042,135.98,135.93,7.3562]
[1726399852590,7.3552,135.96,135.88,15.9975]
[1726399852895,20.0,135.97,135.89,7.15858043]
[1726399853105,20.0,135.97,135.9,7.03309043]
[1726399853401,20.0,135.97,135.91,7.03309043]
[1726399853601,20.0,135.97,135.92,7.03309043]
[1726399853892,20.0,135.97,135.89,0.12549]
[1726399854090,20.0,135.97,135.9,7.03358844]
[1726399854298,27.3546,135.97,135.92,7.3572]
[1726399854499,35.0319349,135.97,135.92,7.3572]
[1726399855502,27.6773349,135.97,135.89,0.12549]
[1726399855789,7.3553,135.96,135.91,7.3577]
[1726399856196,7.3553,135.96,135.92,7.03353206]
[1726399856403,7.3553,135.96,135.91,7.3577]
[1726399857496,7.3553,135.96,135.92,7.3571]
[1726399864194,7.3553,135.96,135.91,7.3576]
[1726399865400,7.3553,135.96,135.92,5.82563691]
[1726399865701,7.3553,135.96,135.91,7.3576]
[1726399867281,7.3562,135.94,135.89,7.3584]
[1726399867498,7.3557,135.95,135.9,7.3582]
[1726399868303,29.8214,135.96,135.91,7.3577]
[1726399868506,20.0,135.95,135.91,7.3577]
[1726399870689,27.66203921,135.95,135.91,7.3577]
[1726399877407,20.0,135.95,135.91,7.3577]
[1726399877692,27.65136696,135.95,135.91,7.3577]
[1726399882804,27.65136696,135.95,135.92,7.3571]
[1726399883005,20.0,135.95,135.92,7.3571]
[1726399883210,27.65248132,135.95,135.92,7.3571]
[1726399887090,27.65248132,135.95,135.91,7.3576]
[1726399888705,7.65248132,135.95,135.89,16.6226]
[1726399888907,6.3732,135.96,135.94,7.3561]
[1726399889113,13.89128874,135.99,135.95,7.3555]
[1726399889503,6.2407,135.99,135.95,7.3555]
[1726399889705,13.89224534,135.99,135.95,7.3555]
[1726399890404,20.0,135.98,135.95,7.3555]
[1726399891324,20.0,135.98,135.94,7.356]
[1726399907133,27.3541,135.98,135.94,7.356]
[1726399910419,27.3541,135.98,135.93,7.3565]
[1726399914938,27.3541,135.98,135.94,7.3561]
[1726399929457,35.02523592,135.98,135.94,7.3561]
[1726399933134,7.3546,135.97,135.9,0.12549]
[1726399933438,7.3546,135.97,135.91,10.22114029]
[1726399933657,7.3546,135.97,135.92,10.22114029]
[1726399933849,7.3546,135.97,135.93,10.22114029]
[1726399934042,7.3546,135.97,135.94,5.82510611]
[1726399934265,7.3546,135.97,135.93,7.3566]
[1726399934562,7.3546,135.97,135.94,5.82510291]
[1726399934756,7.3546,135.97,135.93,7.3566]
[1726399934937,7.3546,135.97,135.94,5.82509689]
[1726399935141,7.3546,135.97,135.93,7.3566]
[1726399935451,7.3546,135.97,135.94,5.82512673]
[1726399935776,7.3546,135.97,135.93,7.3566]
[1726399935962,7.3546,135.97,135.94,5.82513275]
[1726399936172,7.3546,135.97,135.92,7.3571]
[1726399936460,7.3546,135.97,135.93,4.39615173]
[1726399936641,7.3546,135.97,135.92,7.3571]
[1726399936842,7.3546,135.97,135.93,4.3961534]
[1726399937059,7.3546,135.97,135.92,7.3571]
[1726399937270,7.3546,135.97,135.93,4.39617603]
[1726399937564,7.3546,135.97,135.92,7.3571]
[1726399937861,7.3546,135.97,135.93,4.39617517]
[1726399938073,7.3546,135.97,135.92,7.3571]
[1726399938253,7.3546,135.97,135.93,4.3961534]
[1726399938456,7.3546,135.97,135.92,7.3571]
[1726399938661,7.3546,135.97,135.93,4.39615256]
[1726399938860,7.3546,135.97,135.92,7.3571]
[1726399939060,27.67113592,135.98,135.93,7.3566]
[1726399939061,35.02513592,135.98,135.93,7.3566]
[1726399939363,35.02513592,135.98,135.93,11.75267843]
[1726399939665,35.02513592,135.98,135.93,7.3566]
[1726399941438,35.02513592,135.98,135.91,7.3576]
[1726399941439,27.67113592,135.98,135.91,7.3576]
[1726399941641,20.0,135.95,135.92,4.3962743]
[1726399941855,20.0,135.95,135.91,7.3576]
[1726399942165,20.0,135.95,135.92,11.75338644]
[1726399942346,20.0,135.95,135.92,7.3571]
[1726399953450,20.0,135.95,135.91,7.3576]
[1726399984391,6.0317,135.96,135.94,7.3559]
[1726399984592,6.0317,135.96,135.9,24.027864]
[1726399985096,6.0317,135.96,135.92,30.0]
[1726399985267,6.0317,135.96,135.93,7.3566]
[1726399986189,6.0317,135.96,135.94,30.0]
[1726399987894,20.0,135.98,135.95,7.3556]
[1726399988074,20.0,135.98,135.95,37.3556]
[1726399988269,6.3998,135.99,135.95,37.3556]
[1726399988886,6.3998,135.99,135.95,7.3556]
[1726399989502,20.0,135.98,135.95,7.3556]
[1726399989790,20.0,135.98,135.94,7.356]
[1726399995395,7.93184269,136.0,135.95,1.59658268]
[1726399995580,7.93184269,136.0,135.97,7.3544]
[1726399995782,0.2507174,136.0,135.97,7.3544]
[1726399997198,0.2507174,136.0,135.97,37.3544]
[1726399998102,0.2507174,136.0,135.97,7.3544]
[1726400003883,7.3547,135.97,135.91,23.4275]
[1726400004088,7.3547,135.97,135.92,5.8249949]
[1726400004284,7.3547,135.97,135.93,5.8249949]
[1726400004506,7.3547,135.97,135.91,16.0702]
[1726400004814,7.3547,135.97,135.92,5.82487649]
[1726400004985,7.3547,135.97,135.91,16.0702]
[1726400005185,7.3547,135.97,135.92,5.82494907]
[1726400005385,7.3547,135.97,135.92,7.3572]
[1726400007998,15.03883303,135.98,135.92,7.3572]
[1726400016734,15.03883303,135.98,135.91,16.0702]
[1726400016735,15.03883303,135.98,135.93,7.3566]
[1726400020223,21.47653303,135.98,135.93,7.3566]
[1726400025617,20.12549,135.97,135.88,15.6251]
[1726400025805,20.0,135.95,135.89,4.39629703]
[1726400026131,20.0,135.95,135.9,4.39629703]
[1726400026423,20.0,135.96,135.88,15.6251]
[1726400026806,20.0,135.96,135.89,0.25098]
[1726400027218,20.0,135.96,135.9,0.25098]
[1726400027402,20.0,135.97,135.9,0.12549]
[1726400027607,20.0,135.97,135.93,7.3567]
[1726400028336,27.3545,135.97,135.93,7.3567]
[1726400028527,27.3545,135.97,135.92,7.3571]
[1726400031306,27.3545,135.97,135.87,7.3599]
[1726400031307,7.3573,135.92,135.87,7.3599]
[1726400031636,20.12549,135.95,135.86,7.6111174]
[1726400031637,13.5559,135.91,135.86,7.6111174]
[1726400031804,29.1191,135.91,135.86,7.6111174]
[1726400032935,7.3589,135.89,135.86,0.2507174]
[1726400033827,7.3584,135.9,135.86,0.2507174]
[1726400034143,7.3599,135.87,135.86,0.2507174]
[1726400034719,20.0,135.88,135.86,0.2507174]
[1726400036034,27.3598,135.88,135.86,0.2507174]
[1726400037023,7.3599,135.87,135.86,0.2507174]
[1726400037220,27.3599,135.87,135.86,0.2507174]
[1726400037431,33.558,135.87,135.86,0.2507174]
[1726400038740,33.558,135.87,135.78,0.2507174]
[1726400038741,6.1981,135.85,135.78,0.2507174]
[1726400038923,6.1981,135.85,135.66,0.2507174]
[1726400038924,27.3664,135.75,135.71,30.0]
[1726400039251,27.3664,135.75,135.66,0.2507174]
[1726400039252,27.3686,135.71,135.66,0.2507174]
[1726400039751,65.83650874,135.71,135.66,0.2507174]
[1726400039915,27.3697,135.69,135.68,0.125461]
[1726400040929,27.74617,135.69,135.68,0.125461]
[1726400041127,27.74617,135.69,135.63,0.2685534]
[1726400041128,20.0,135.68,135.63,0.2685534]
[1726400041642,7.3698,135.69,135.63,0.2685534]
[1726400042149,27.69760819,135.68,135.63,0.2685534]
[1726400042330,7.69760819,135.68,135.63,0.2685534]
[1726400042650,20.0,135.71,135.63,0.2685534]
[1726400042823,27.69608442,135.71,135.63,0.2685534]
[1726400043417,27.69608442,135.71,135.65,7.3717]
[1726400049025,7.69608442,135.71,135.68,7.3701]
[1726400049240,6.1981,135.75,135.66,7.3708]
[1726400049440,13.40180682,135.74,135.66,7.3708]
[1726400049627,7.69580025,135.72,135.66,7.3708]
[1726400049829,13.40180682,135.74,135.66,7.3708]
[1726400050338,24.153354,135.73,135.66,7.3708]
[1726400051039,20.0,135.72,135.66,7.3708]
[1726400056330,20.0,135.74,135.67,7.3705]
[1726400057047,20.0,135.74,135.66,7.3713]
[1726400057551,23.776884,135.73,135.66,7.3713]
[1726400057730,20.12549,135.72,135.66,7.3713]
[1726400060657,7.69509027,135.71,135.66,7.3713]
[1726400061855,7.69509027,135.71,135.67,7.3707]
[1726400064554,7.69509027,135.71,135.68,7.3701]
[1726400064955,7.69509027,135.71,135.67,7.3707]
[1726400065866,7.69509027,135.71,135.68,7.3701]
[1726400066156,7.69509027,135.71,135.67,7.3707]
[1726400067567,7.69509027,135.71,135.66,7.3713]
[1726400067860,7.69509027,135.71,135.63,0.2685534]
[1726400067861,7.69509027,135.71,135.67,7.3707]
[1726400073545,7.69509027,135.71,135.63,0.2685534]
[1726400073546,7.69509027,135.71,135.65,0.12549]
[1726400073750,20.0,135.74,135.67,7.3703]
[1726400073945,7.68621662,135.72,135.68,7.3701]
[1726400074140,7.68621662,135.72,135.67,7.3707]
[1726400074141,20.0,135.71,135.67,7.3707]
[1726400075047,20.0,135.71,135.66,7.3712]
[1726400075859,20.0,135.71,135.67,7.3708]
[1726400076468,20.0,135.71,135.63,0.2685534]
[1726400076669,20.0,135.71,135.66,7.3712]
[1726400078962,6.1896,135.7,135.66,7.3712]
[1726400080466,6.1896,135.7,135.65,7.3717]
[1726400080772,6.1896,135.7,135.63,7.6410534]
[1726400080773,15.2211,135.69,135.63,7.6410534]
[1726400080975,20.0,135.68,135.64,7.3724]
[1726400083456,20.0,135.68,135.65,7.3717]
[1726400085768,20.0,135.68,135.64,7.3723]
[1726400085971,20.0,135.68,135.65,7.3717]
[1726400086574,20.0,135.68,135.66,4.05682157]
[1726400086860,20.0,135.68,135.67,4.05682157]
[1726400088186,20.0,135.68,135.64,7.3723]
[1726400088361,20.0,135.68,135.65,4.05682241]
[1726400088562,20.0,135.68,135.66,4.05682241]
[1726400088776,15.2211,135.69,135.67,4.05660916]
[1726400088984,15.2211,135.69,135.66,7.3712]
[1726400089158,15.2211,135.69,135.67,4.05663099]
[1726400089480,15.2211,135.69,135.66,7.3712]
[1726400090361,6.1896,135.7,135.67,7.3706]
[1726400100692,7.69925996,135.71,135.67,7.3706]
[1726400101396,7.69925996,135.71,135.63,0.2685534]
[1726400101397,7.3699,135.69,135.64,11.42921733]
[1726400101580,7.69925996,135.71,135.65,11.42861733]
[1726400101581,18.94298173,135.7,135.65,11.42861733]
[1726400101774,18.94298173,135.7,135.65,7.3718]
[1726400102094,26.64071717,135.7,135.65,7.3718]
[1726400102395,15.06693544,135.7,135.65,7.3718]
[1726400102620,15.06693544,135.7,135.64,7.3723]
[1726400103479,7.3697,135.69,135.64,7.3723]
[1726400108609,7.3697,135.69,135.65,4.05663035]
[1726400108782,7.3697,135.69,135.64,7.3723]
[1726400111578,7.3702,135.68,135.63,7.6444753]
[1726400111783,44.027864,135.69,135.64,4.0567952]
[1726400111983,44.027864,135.69,135.63,0.2715753]
[1726400112183,44.027864,135.69,135.64,4.05683]
[1726400112383,44.027864,135.69,135.63,0.2715753]
[1726400112584,44.027864,135.69,135.64,4.05682999]
[1726400112802,44.027864,135.69,135.63,0.2715753]
[1726400112974,0.12549,135.68,135.63,0.2715753]
[1726400113181,7.3709,135.67,135.63,0.2715753]
[1726400113812,7.3713,135.66,135.63,0.2715753]
[1726400114377,7.3708,135.67,135.63,0.2715753]
[1726400115789,33.902,135.69,135.63,0.2715753]
[1726400117284,33.902,135.69,135.64,7.3722]
[1726400121383,27.3702,135.69,135.64,7.3722]
[1726400127589,7.69269184,135.68,135.64,7.3722]
[1726400128990,27.3702,135.69,135.64,7.3722]
[1726400129192,0.25098,135.69,135.63,7.6443753]
[1726400129392,23.902374,135.68,135.63,0.2715753]
[1726400129587,7.62228,135.67,135.63,0.2715753]
[1726400131614,7.3723,135.65,135.63,0.2715753]
[1726400131824,7.3724,135.64,135.63,0.2715753]
[1726400132117,43.776884,135.66,135.63,0.2715753]
[1726400132118,23.776884,135.66,135.63,0.2715753]
[1726400132302,27.3724,135.64,135.63,0.2715753]
[1726400132816,20.0,135.64,135.63,0.2715753]
[1726400135399,6.6314,135.67,135.63,0.2715753]
[1726400136411,14.0024,135.67,135.63,0.2715753]
[1726400136909,20.0,135.66,135.63,0.2715753]
[1726400137819,7.371,135.67,135.63,0.2715753]
[1726400139711,15.06450826,135.67,135.63,0.2715753]
[1726400140814,15.06450826,135.67,135.63,7.6444753]
[1726400143217,15.06450826,135.67,135.63,0.2715753]
[1726400144506,7.3714,135.66,135.63,0.2715753]
[1726400144912,15.06430826,135.67,135.63,7.6444753]
[1726400146013,15.06430826,135.67,135.63,0.2715753]
[1726400147926,7.3714,135.66,135.63,0.2715753]
[1726400148825,7.372,135.65,135.63,0.2715753]
[1726400149932,15.06326919,135.65,135.63,0.2715753]
[1726400151921,7.3724,135.64,135.63,0.2715753]
[1726400153635,31.400264,135.64,135.63,0.2715753]
[1726400155340,31.525754,135.64,135.63,0.2715753]
[1726400155836,51.525754,135.64,135.63,0.2715753]
[1726400156923,27.3724,135.64,135.63,0.2715753]
[1726400157116,20.0,135.64,135.63,0.2715753]
[1726400157541,7.69126919,135.65,135.63,0.2715753]
[1726400158817,7.62338,135.64,135.63,0.2715753]
[1726400159034,31.525754,135.64,135.63,0.2715753]
[1726400159237,15.06326919,135.65,135.63,0.2715753]
[1726400160126,7.69126919,135.65,135.63,0.2715753]
[1726400162944,15.06316919,135.65,135.63,0.2715753]
[1726400165742,51.400264,135.64,135.63,0.2715753]
[1726400165925,51.525754,135.64,135.63,0.2715753]
[1726400170448,27.3724,135.64,135.63,0.2715753]
[1726400170744,51.400264,135.64,135.63,0.2715753]
[1726400173960,51.525754,135.64,135.63,0.2715753]
[1726400174133,27.3724,135.64,135.63,0.2715753]
[1726400174734,27.49789,135.64,135.63,0.2715753]
[1726400175756,51.400264,135.64,135.63,0.2715753]
[1726400176355,27.3724,135.64,135.63,0.2715753]
[1726400185643,51.149284,135.64,135.63,0.2715753]
[1726400186164,51.525754,135.64,135.63,0.2715753]
[1726400187366,51.402464,135.6,135.59,0.2530389]
[1726400187734,20.0,135.6,135.59,0.2530389]
[1726400188156,27.3746,135.6,135.59,0.2530389]
[1726400188365,51.527954,135.6,135.59,0.2530389]
[1726400188862,20.0,135.6,135.59,0.2530389]
[1726400189040,27.3746,135.6,135.59,0.2530389]
[1726400190744,51.527954,135.6,135.59,0.2530389]
[1726400197256,27.3746,135.6,135.59,0.2530389]
[1726400198553,51.402464,135.6,135.59,0.2530389]
[1726400198752,51.527954,135.6,135.59,0.2530389]
[1726400199061,15.06709697,135.61,135.59,0.2530389]
[1726400199287,7.3741,135.61,135.59,0.2530389]
[1726400200550,20.0,135.6,135.59,0.2530389]
[1726400201580,51.151484,135.6,135.59,0.2530389]
[1726400202352,51.527954,135.6,135.59,0.2530389]
[1726400209779,59.21432522,135.6,135.59,0.2530389]
[1726400215070,62.18138453,135.6,135.59,0.2530389]
[1726400217159,59.21432522,135.6,135.59,0.2530389]
[1726400225766,27.68637122,135.6,135.59,0.2530389]
[1726400226880,35.06097122,135.6,135.59,0.2530389]
[1726400227083,15.06097122,135.6,135.59,0.2530389]
[1726400227283,7.68637122,135.6,135.59,0.2530389]
[1726400227584,7.3732,135.63,135.59,0.2530389]
[1726400228763,20.0,135.62,135.59,0.2530389]
[1726400229167,7.3736,135.62,135.59,0.2530389]
[1726400231167,20.0,135.62,135.59,0.2530389]
[1726400232394,20.0,135.62,135.59,7.6280389]
[1726400234188,20.0,135.62,135.59,0.2530389]
[1726400235185,20.0,135.62,135.59,7.6281389]
[1726400235693,27.3724,135.64,135.59,7.6281389]
[1726400238195,20.0,135.64,135.61,7.374]
[1726400238401,20.0,135.64,135.62,16.5923]
[1726400240984,7.66737996,135.65,135.62,23.9657]
[1726400241901,18.21525892,135.69,135.64,7.3724]
[1726400242997,20.0,135.68,135.65,7.3718]
[1726400243480,23.19167857,135.7,135.65,7.3718]
[1726400243803,8.1584769,135.7,135.66,7.3713]
[1726400244099,22.6,135.71,135.67,16.5923]
[1726400244880,30.26421242,135.72,135.67,16.5923]
[1726400245080,10.84555892,135.71,135.67,16.5923]
[1726400245297,20.0,135.7,135.67,16.5923]
[1726400253403,19.96994,135.7,135.67,16.5923]
[1726400253895,18.21415892,135.71,135.67,16.5923]
[1726400254292,7.3686,135.71,135.67,23.9631]
[1726400256413,20.0,135.71,135.68,7.3701]
[1726400259022,22.6,135.72,135.69,7.3696]
[1726400260016,22.6,135.72,135.67,16.5923]
[1726400260017,22.6,135.72,135.68,7.3701]
[1726400261808,7.6207389,135.73,135.68,7.3701]
[1726400262521,7.6207389,135.73,135.67,16.5923]
[1726400262522,20.2530389,135.73,135.69,7.3697]
[1726400264010,27.6206389,135.73,135.69,7.3697]
[1726400264215,27.6206389,135.73,135.68,7.3701]
[1726400264592,0.2530389,135.73,135.71,7.3683]
[1726400265315,0.2530389,135.73,135.71,7.3685]
[1726400265898,0.2530389,135.73,135.72,7.3681]
[1726400266517,0.2530389,135.73,135.72,23.2819]
[1726400266720,0.2530389,135.78,135.72,16.03929]
[1726400266897,7.6180389,135.78,135.72,15.9138]
[1726400267605,0.2530389,135.78,135.74,7.367]
[1726400267804,0.2530389,135.78,135.73,7.3674]
[1726400267805,7.6179389,135.78,135.73,7.3674]
[1726400268537,7.6179389,135.78,135.74,7.3669]
[1726400268929,0.2530389,135.78,135.74,7.3669]
[1726400270321,0.2530389,135.78,135.75,7.3662]
[1726400272917,0.2530389,135.78,135.76,7.3658]
[1726400274839,0.2530389,135.78,135.75,7.3664]
[1726400276443,0.2530389,135.78,135.77,15.9138]
[1726400276940,0.2530389,135.78,135.77,23.2791]
[1726400283338,0.2530389,135.78,135.77,23.40459]
[1726400283526,0.2530389,135.78,135.77,23.53008]
[1726400284152,0.2530389,135.78,135.77,23.40459]
[1726400284327,0.2530389,135.78,135.77,23.2791]
[1726400286237,0.2530389,135.78,135.77,23.40459]
[1726400286438,0.2530389,135.78,135.77,23.53008]
[1726400287227,0.2530389,135.78,135.77,23.2791]
[1726400290952,0.2530389,135.78,135.77,23.53008]
[1726400291631,0.2530389,135.78,135.77,23.40459]
[1726400291835,0.2530389,135.78,135.77,23.2791]
[1726400307860,0.2530389,135.78,135.77,23.53008]
[1726400308364,0.2530389,135.78,135.77,23.65557]
[1726400308547,0.2530389,135.78,135.77,47.432454]
[1726400312165,0.2530389,135.78,135.77,7.3653]
[1726400318076,0.2530389,135.78,135.77,7.49079]
[1726400318260,0.2530389,135.78,135.77,7.61628]
[1726400332694,0.2530389,135.78,135.77,31.518654]
[1726400341502,0.2530389,135.78,135.77,61.518654]
[1726400342593,0.2530389,135.78,135.77,37.3653]
[1726400342792,0.2530389,135.78,135.77,7.3653]
[1726400344190,0.2530389,135.78,135.77,7.49079]
[1726400344396,0.2530389,135.78,135.77,7.61628]
[1726400351880,0.2530389,135.78,135.77,31.518654]
[1726400365492,0.2530389,135.78,135.77,7.61628]
[1726400371399,0.2530389,135.78,135.77,7.74177]
[1726400371801,0.2530389,135.78,135.77,31.518654]
[1726400374403,0.2530389,135.78,135.77,61.518654]
[1726400374810,0.2530389,135.78,135.77,65.51422862]
[1726400376703,0.2530389,135.78,135.77,35.51422862]
[1726400379615,0.2530389,135.78,135.77,65.51422862]
[1726400381004,0.2530389,135.78,135.77,61.518654]
[1726400381201,0.2530389,135.78,135.77,65.51434564]
[1726400381418,0.2530389,135.78,135.77,39.51003728]
[1726400381715,0.2530389,135.78,135.77,39.5102248]
[1726400382122,0.2530389,135.78,135.77,35.51453316]
[1726400386928,0.2530389,135.78,135.77,41.90790231]
[1726400391608,0.2530389,135.78,135.77,31.518654]
[1726400391910,0.2530389,135.78,135.77,41.90769604]
[1726400392114,0.2530389,135.78,135.77,37.91191064]
[1726400392606,0.2530389,135.78,135.77,13.75855664]
[1726400393410,0.2530389,135.78,135.77,7.3653]
[1726400394025,0.2530389,135.78,135.77,7.61628]
[1726400395326,0.2530389,135.78,135.77,31.518654]
[1726400402014,0.2530389,135.78,135.77,7.74177]
[1726400404323,0.2530389,135.78,135.77,7.3653]
[1726400404743,0.2530389,135.78,135.72,6.5459]
[1726400404744,0.2530389,135.78,135.76,7.3658]
[1726400405327,22.6435,135.77,135.74,7.3665]
[1726400405640,22.6435,135.77,135.75,7.3664]
[1726400406033,22.6435,135.77,135.76,7.3659]
[1726400419453,0.2530389,135.78,135.77,7.3653]
[1726400422156,0.2530389,135.78,135.77,7.49079]
[1726400422469,0.2530389,135.78,135.77,31.518654]
[1726400432053,0.2530389,135.78,135.77,7.61628]
[1726400432266,0.2530389,135.78,135.77,31.518654]
[1726400432855,0.2530389,135.78,135.77,7.61628]
[1726400435278,0.2530389,135.78,135.77,31.518654]
[1726400452786,0.2530389,135.78,135.77,35.51442458]
[1726400453489,0.2530389,135.78,135.77,31.518654]
[1726400454286,0.2530389,135.78,135.77,65.51442109]
[1726400454789,0.2530389,135.78,135.77,71.90761651]
[1726400454976,0.2530389,135.78,135.77,75.90336365]
[1726400457202,0.2530389,135.78,135.77,35.51442109]
[1726400457374,0.2530389,135.78,135.77,41.90718081]
[1726400457578,0.2530389,135.78,135.77,45.90265563]
[1726400460292,0.2530389,135.78,135.77,75.90265563]
[1726400460594,0.2530389,135.78,135.77,71.90718081]
[1726400460799,0.2530389,135.78,135.77,65.51442109]
[1726400460995,0.2530389,135.78,135.77,69.50994753]
[1726400461301,0.2530389,135.78,135.77,75.90278984]
[1726400461899,0.2530389,135.78,135.77,65.51442109]
[1726400464999,0.2530389,135.78,135.77,41.73753709]
[1726400465891,0.2530389,135.78,135.77,52.12589351]
[1726400466086,0.2530389,135.78,135.77,75.90277751]
[1726400467099,0.2530389,135.78,135.77,69.50994279]
[1726400467688,0.2530389,135.78,135.77,70.98235372]